[Event "Titled Tuesday Blitz January 04 2022"]
[White "Zverev, Lev"]
[Black "Svane, Frederik"]
[WhiteFideId "24250775"]
[BlackFideId "12923044"]
[WhiteElo "2156"]
[BlackElo "2459"]
[Result "1/2-1/2"]
[Round "08"]
[TimeControl "180+1"]
[Date "2022.01.04"]
[WhiteClock "0:00:45"]
[BlackClock "0:00:04"]

1. e4 {[%clk 0:03:00]}  c5 {[%clk 0:03:00]} 2. Nf3 {[%clk 0:03:00]}  d6 {[%clk 0:03:01]} 3. d4 {[%clk 0:03:00]}  cxd4 {[%clk 0:03:01]} 4. Nxd4 {[%clk 0:03:00]}  Nf6 {[%clk 0:03:02]} 5. Nc3 {[%clk 0:02:59]}  Nc6 {[%clk 0:03:02]} 6. Bg5 {[%clk 0:02:57]}  e6 {[%clk 0:03:03]} 7. Qd2 {[%clk 0:02:56]}  a6 {[%clk 0:03:01]} 8. O-O-O {[%clk 0:02:55]}  Bd7 {[%clk 0:03:01]} 9. f4 {[%clk 0:02:50]}  Be7 {[%clk 0:03:00]} 10. Nxc6 {[%clk 0:02:46]}  Bxc6 {[%clk 0:02:59]} 11. e5 {[%clk 0:02:47]}  dxe5 {[%clk 0:02:55]} 12. fxe5 {[%clk 0:02:36]}  Qxd2+ {[%clk 0:02:53]} 13. Rxd2 {[%clk 0:02:35]}  Ng4 {[%clk 0:02:44]} 14. Bf4 {[%clk 0:02:34]}  g5 {[%clk 0:02:22]} 15. Bg3 {[%clk 0:02:33]}  h5 {[%clk 0:02:23]} 16. Be2 {[%clk 0:02:12]}  Bc5 {[%clk 0:02:06]} 17. Bxg4 {[%clk 0:01:59]}  hxg4 {[%clk 0:02:06]} 18. Kb1 {[%clk 0:01:55]}  Be3 {[%clk 0:01:58]} 19. Re2 {[%clk 0:01:53]}  Bf4 {[%clk 0:01:58]} 20. Rf1 {[%clk 0:01:39]}  Ke7 {[%clk 0:01:49]} 21. Bxf4 {[%clk 0:01:21]}  gxf4 {[%clk 0:01:50]} 22. Rxf4 {[%clk 0:01:22]}  Rxh2 {[%clk 0:01:44]} 23. b3 {[%clk 0:01:21]}  Rg8 {[%clk 0:01:04]} 24. g3 {[%clk 0:01:12]}  Rxe2 {[%clk 0:00:22]} 25. Nxe2 {[%clk 0:01:10]}  Rg5 {[%clk 0:00:20]} 26. Nd4 {[%clk 0:01:06]}  Bg2 {[%clk 0:00:19]} 27. Rf2 {[%clk 0:00:59]}  Bf3 {[%clk 0:00:10]} 28. Nxf3 {[%clk 0:00:54]}  Rf5 {[%clk 0:00:09]} 29. Kc1 {[%clk 0:00:52]}  gxf3 {[%clk 0:00:07]} 30. Kd2 {[%clk 0:00:52]}  a5 {[%clk 0:00:02]} 31. c4 {[%clk 0:00:52]}  Rxe5 {[%clk 0:00:01]} 32. Rxf3 {[%clk 0:00:52]}  Rh5 {[%clk 0:00:02]} 33. Kc3 {[%clk 0:00:51]}  Rh2 {[%clk 0:00:02]} 34. a3 {[%clk 0:00:52]}  b6 {[%clk 0:00:02]} 35. b4 {[%clk 0:00:52]}  axb4+ {[%clk 0:00:02]} 36. axb4 {[%clk 0:00:53]}  f5 {[%clk 0:00:02]} 37. Kd4 {[%clk 0:00:52]}  Rd2+ {[%clk 0:00:02]} 38. Rd3 {[%clk 0:00:50]}  Rg2 {[%clk 0:00:02]} 39. c5 {[%clk 0:00:48]}  bxc5+ {[%clk 0:00:03]} 40. Kxc5 {[%clk 0:00:49]}  Rc2+ {[%clk 0:00:03]} 41. Kd4 {[%clk 0:00:49]}  Rb2 {[%clk 0:00:03]} 42. Kc3 {[%clk 0:00:48]}  Rb1 {[%clk 0:00:04]} 43. Kc4 {[%clk 0:00:49]}  Rc1+ {[%clk 0:00:04]} 44. Kd4 {[%clk 0:00:49]}  Rb1 {[%clk 0:00:04]} 45. Kc5 {[%clk 0:00:49]}  Rc1+ {[%clk 0:00:04]} 46. Kb6 {[%clk 0:00:49]}  e5 {[%clk 0:00:04]} 47. b5 {[%clk 0:00:47]}  e4 {[%clk 0:00:05]} 48. Re3 {[%clk 0:00:47]}  Kf6 {[%clk 0:00:05]} 49. g4 {[%clk 0:00:45]}  Kg5 {[%clk 0:00:03]} 50. gxf5 {[%clk 0:00:45]}  Kxf5 {[%clk 0:00:04]} 51. Ka7 {[%clk 0:00:45]}  Kf4 {[%clk 0:00:05]} 52. Rb3 {[%clk 0:00:45]}  Ra1+ {[%clk 0:00:04]} 53. Kb7 {[%clk 0:00:44]}  e3 {[%clk 0:00:05]} 54. Rb2 {[%clk 0:00:44]}  Kf3 {[%clk 0:00:04]} 55. b6 {[%clk 0:00:43]}  e2 {[%clk 0:00:05]} 56. Rxe2 {[%clk 0:00:43]}  Kxe2 {[%clk 0:00:06]} 57. Kc7 {[%clk 0:00:43]}  Rc1+ {[%clk 0:00:06]} 58. Kb8 {[%clk 0:00:43]}  Kd3 {[%clk 0:00:06]} 59. b7 {[%clk 0:00:44]}  Kd4 {[%clk 0:00:06]} 60. Ka7 {[%clk 0:00:44]}  Ra1+ {[%clk 0:00:07]} 61. Kb6 {[%clk 0:00:44]}  Rb1+ {[%clk 0:00:07]} 62. Kc7 {[%clk 0:00:45]}  Rc1+ {[%clk 0:00:08]} 63. Kd7 {[%clk 0:00:44]}  Rb1 {[%clk 0:00:07]} 64. Kc7 {[%clk 0:00:45]}  Rc1+ {[%clk 0:00:05]} 65. Kd7 {[%clk 0:00:45]}  Rb1 {[%clk 0:00:01]} 66. Kc8 {[%clk 0:00:44]}  Rc1+ {[%clk 0:00:01]} 67. Kd8 {[%clk 0:00:45]}  Rh1 {[%clk 0:00:01]} 68. Kc8 {[%clk 0:00:45]}  Rh8+ {[%clk 0:00:02]} 69. Kc7 {[%clk 0:00:46]}  Kc5 {[%clk 0:00:02]} 70. b8=Q {[%clk 0:00:44]}  Rh7+ {[%clk 0:00:03]} 71. Kc8 {[%clk 0:00:44]}  Rh8+ {[%clk 0:00:03]} 72. Kb7 {[%clk 0:00:44]}  Rxb8+ {[%clk 0:00:04]} 73. Kxb8 {[%clk 0:00:45]} 1/2-1/2


[Site "https://www.chess.com"]

[Event "Titled Tuesday Blitz January 04 2022"]
[White "Altman, Joshua"]
[Black "Tsvetkov, Andrey"]
[WhiteFideId "426210"]
[BlackFideId "34139360"]
[WhiteElo "1945"]
[BlackElo "2280"]
[Result "1/2-1/2"]
[Round "09"]
[TimeControl "180+1"]
[Date "2022.01.04"]
[WhiteClock "0:00:12"]
[BlackClock "0:00:06"]

1. d4 {[%clk 0:03:00]}  Nf6 {[%clk 0:02:51]} 2. c4 {[%clk 0:03:00]}  e6 {[%clk 0:02:51]} 3. Nf3 {[%clk 0:03:01]}  b6 {[%clk 0:02:48]} 4. g3 {[%clk 0:03:00]}  Ba6 {[%clk 0:02:47]} 5. Qa4 {[%clk 0:03:00]}  Bb7 {[%clk 0:02:36]} 6. Bg2 {[%clk 0:03:00]}  c5 {[%clk 0:02:37]} 7. dxc5 {[%clk 0:03:01]}  Bxc5 {[%clk 0:02:30]} 8. O-O {[%clk 0:03:00]}  O-O {[%clk 0:02:30]} 9. Nc3 {[%clk 0:03:00]}  Nc6 {[%clk 0:02:28]} 10. Bf4 {[%clk 0:02:57]}  Qe7 {[%clk 0:02:19]} 11. Rad1 {[%clk 0:02:54]}  Rfd8 {[%clk 0:02:17]} 12. a3 {[%clk 0:02:44]}  a5 {[%clk 0:02:17]} 13. Ne5 {[%clk 0:02:36]}  Rac8 {[%clk 0:02:06]} 14. Nb5 {[%clk 0:02:21]}  Nh5 {[%clk 0:01:53]} 15. Na7 {[%clk 0:01:50]}  Nxf4 {[%clk 0:01:48]} 16. gxf4 {[%clk 0:01:39]}  Nxa7 {[%clk 0:01:29]} 17. Bxb7 {[%clk 0:01:38]}  Rc7 {[%clk 0:01:17]} 18. Bg2 {[%clk 0:01:35]}  Qh4 {[%clk 0:01:13]} 19. Nxd7 {[%clk 0:01:25]}  b5 {[%clk 0:01:02]} 20. cxb5 {[%clk 0:01:10]}  Rcxd7 {[%clk 0:00:58]} 21. Rxd7 {[%clk 0:01:09]}  Rxd7 {[%clk 0:00:58]} 22. b6 {[%clk 0:01:10]}  Qe7 {[%clk 0:00:41]} 23. bxa7 {[%clk 0:01:06]}  Rxa7 {[%clk 0:00:42]} 24. e3 {[%clk 0:01:02]}  h6 {[%clk 0:00:41]} 25. Rd1 {[%clk 0:01:00]}  Bb6 {[%clk 0:00:29]} 26. Qc6 {[%clk 0:00:59]}  Qc5 {[%clk 0:00:27]} 27. Qe8+ {[%clk 0:00:41]}  Kh7 {[%clk 0:00:25]} 28. Be4+ {[%clk 0:00:39]}  f5 {[%clk 0:00:19]} 29. Bg2 {[%clk 0:00:39]}  Rc7 {[%clk 0:00:18]} 30. Rd8 {[%clk 0:00:34]}  Re7 {[%clk 0:00:18]} 31. Qg8+ {[%clk 0:00:28]}  Kg6 {[%clk 0:00:18]} 32. Re8 {[%clk 0:00:24]}  Qc1+ {[%clk 0:00:10]} 33. Bf1 {[%clk 0:00:24]}  Qc7 {[%clk 0:00:11]} 34. Rxe7 {[%clk 0:00:21]}  Qxe7 {[%clk 0:00:11]} 35. Bc4 {[%clk 0:00:21]}  Kf6 {[%clk 0:00:12]} 36. h4 {[%clk 0:00:18]}  Bc7 {[%clk 0:00:09]} 37. h5 {[%clk 0:00:18]}  Qd7 {[%clk 0:00:08]} 38. Qf8+ {[%clk 0:00:17]}  Qf7 {[%clk 0:00:08]} 39. Qc5 {[%clk 0:00:17]}  Qe7 {[%clk 0:00:07]} 40. Qd4+ {[%clk 0:00:17]}  Kf7 {[%clk 0:00:07]} 41. e4 {[%clk 0:00:16]}  fxe4 {[%clk 0:00:07]} 42. Qxe4 {[%clk 0:00:16]}  Qf6 {[%clk 0:00:05]} 43. f5 {[%clk 0:00:15]}  Qg5+ {[%clk 0:00:05]} 44. Kf1 {[%clk 0:00:14]}  Qc1+ {[%clk 0:00:06]} 45. Kg2 {[%clk 0:00:14]}  Qg5+ {[%clk 0:00:06]} 46. Kf1 {[%clk 0:00:14]}  Qc1+ {[%clk 0:00:06]} 47. Kg2 {[%clk 0:00:13]}  Qg5+ {[%clk 0:00:06]} 48. Kf1 {[%clk 0:00:12]} 1/2-1/2


[Site "https://www.chess.com"]

[Event "Titled Tuesday Blitz January 04 2022"]
[White "Artemenko, Oleg"]
[Black "Demchenko, Anton"]
[WhiteFideId "14201798"]
[BlackFideId "4160258"]
[WhiteElo "2287"]
[BlackElo "2539"]
[Result "0-1"]
[Round "09"]
[TimeControl "180+1"]
[Date "2022.01.04"]
[WhiteClock "0:00:22"]
[BlackClock "0:00:29"]

1. d4 {[%clk 0:03:00]}  Nf6 {[%clk 0:02:58]} 2. Nc3 {[%clk 0:03:01]}  d5 {[%clk 0:02:58]} 3. Bf4 {[%clk 0:03:01]}  a6 {[%clk 0:02:58]} 4. e3 {[%clk 0:03:01]}  b5 {[%clk 0:02:57]} 5. Nf3 {[%clk 0:02:59]}  e6 {[%clk 0:02:57]} 6. Bd3 {[%clk 0:02:58]}  Nbd7 {[%clk 0:02:55]} 7. Ne2 {[%clk 0:02:56]}  Bb7 {[%clk 0:02:54]} 8. c3 {[%clk 0:02:56]}  c5 {[%clk 0:02:54]} 9. h3 {[%clk 0:02:48]}  Be7 {[%clk 0:02:53]} 10. g4 {[%clk 0:02:47]}  Ne4 {[%clk 0:02:53]} 11. Ng3 {[%clk 0:02:35]}  g5 {[%clk 0:02:44]} 12. Be5 {[%clk 0:02:25]}  f6 {[%clk 0:02:44]} 13. Bxe4 {[%clk 0:02:19]}  dxe4 {[%clk 0:02:13]} 14. Nxg5 {[%clk 0:02:18]}  Nxe5 {[%clk 0:02:11]} 15. Nxe6 {[%clk 0:02:12]}  Nd3+ {[%clk 0:01:56]} 16. Kf1 {[%clk 0:02:11]}  Qd7 {[%clk 0:01:35]} 17. Ng7+ {[%clk 0:02:11]}  Kd8 {[%clk 0:01:31]} 18. N7f5 {[%clk 0:02:05]}  c4 {[%clk 0:01:09]} 19. Nh5 {[%clk 0:01:45]}  Bd5 {[%clk 0:01:04]} 20. b4 {[%clk 0:01:19]}  Kc7 {[%clk 0:01:01]} 21. a4 {[%clk 0:01:11]}  Nb2 {[%clk 0:00:54]} 22. Qc2 {[%clk 0:01:10]}  Nxa4 {[%clk 0:00:54]} 23. Nf4 {[%clk 0:01:09]}  Bb7 {[%clk 0:00:51]} 24. d5 {[%clk 0:01:06]}  Bd6 {[%clk 0:00:45]} 25. Ne6+ {[%clk 0:01:05]}  Kb8 {[%clk 0:00:46]} 26. Qxe4 {[%clk 0:01:04]}  Nxc3 {[%clk 0:00:36]} 27. Qd4 {[%clk 0:01:04]}  Be5 {[%clk 0:00:36]} 28. Qb6 {[%clk 0:00:42]}  Nxd5 {[%clk 0:00:37]} 29. Qa5 {[%clk 0:00:27]}  Qxe6 {[%clk 0:00:37]} 30. Re1 {[%clk 0:00:27]}  Ka7 {[%clk 0:00:30]} 31. e4 {[%clk 0:00:25]}  Nf4 {[%clk 0:00:29]} 32. f3 {[%clk 0:00:24]}  Rad8 {[%clk 0:00:29]} 33. Qa3 {[%clk 0:00:23]}  Rd3 {[%clk 0:00:29]} 34. Qa2 {[%clk 0:00:21]}  Rxf3+ {[%clk 0:00:29]} 35. Kg1 {[%clk 0:00:22]}  Qb6+ {[%clk 0:00:29]} 0-1


[Site "https://www.chess.com"]

[Event "Titled Tuesday Blitz January 04 2022"]
[White "Darini, Pouria"]
[Black "Timofeev, Artyom"]
[WhiteFideId "12502200"]
[BlackFideId "4140419"]
[WhiteElo "2489"]
[BlackElo "2583"]
[Result "1-0"]
[Round "09"]
[TimeControl "180+1"]
[Date "2022.01.04"]
[WhiteClock "0:00:06"]
[BlackClock "0:00:05"]

1. e4 {[%clk 0:03:00]}  c5 {[%clk 0:02:59]} 2. Nf3 {[%clk 0:02:58]}  Nc6 {[%clk 0:02:59]} 3. Bb5 {[%clk 0:02:52]}  d6 {[%clk 0:02:59]} 4. c3 {[%clk 0:02:51]}  Bd7 {[%clk 0:02:52]} 5. O-O {[%clk 0:02:51]}  a6 {[%clk 0:02:50]} 6. Ba4 {[%clk 0:02:50]}  Nf6 {[%clk 0:02:44]} 7. Re1 {[%clk 0:02:49]}  e5 {[%clk 0:02:42]} 8. d3 {[%clk 0:02:36]}  Be7 {[%clk 0:02:40]} 9. Nbd2 {[%clk 0:02:37]}  O-O {[%clk 0:02:39]} 10. Nf1 {[%clk 0:02:38]}  Re8 {[%clk 0:02:38]} 11. Bg5 {[%clk 0:02:36]}  h6 {[%clk 0:02:32]} 12. Bxf6 {[%clk 0:02:37]}  Bxf6 {[%clk 0:02:32]} 13. Ne3 {[%clk 0:02:38]}  g6 {[%clk 0:02:32]} 14. g3 {[%clk 0:02:26]}  Bg7 {[%clk 0:02:30]} 15. h4 {[%clk 0:02:26]}  h5 {[%clk 0:02:07]} 16. Nd5 {[%clk 0:01:59]}  Bh6 {[%clk 0:02:06]} 17. Ng5 {[%clk 0:01:27]}  Bxg5 {[%clk 0:01:50]} 18. hxg5 {[%clk 0:01:28]}  Qxg5 {[%clk 0:01:38]} 19. Nc7 {[%clk 0:01:27]}  h4 {[%clk 0:01:38]} 20. Qf3 {[%clk 0:01:23]}  Bg4 {[%clk 0:01:31]} 21. Qe3 {[%clk 0:01:22]}  Qh5 {[%clk 0:01:31]} 22. Nxe8 {[%clk 0:01:20]}  Rxe8 {[%clk 0:01:30]} 23. Bd1 {[%clk 0:01:05]}  Kg7 {[%clk 0:01:18]} 24. Kg2 {[%clk 0:00:20]}  h3+ {[%clk 0:00:30]} 25. Kh2 {[%clk 0:00:20]}  Nd8 {[%clk 0:00:23]} 26. f3 {[%clk 0:00:18]}  Bd7 {[%clk 0:00:21]} 27. f4 {[%clk 0:00:19]}  Bg4 {[%clk 0:00:20]} 28. Bxg4 {[%clk 0:00:19]}  Qxg4 {[%clk 0:00:20]} 29. Qe2 {[%clk 0:00:20]}  Qd7 {[%clk 0:00:19]} 30. Rf1 {[%clk 0:00:18]}  exf4 {[%clk 0:00:16]} 31. gxf4 {[%clk 0:00:15]}  d5 {[%clk 0:00:13]} 32. e5 {[%clk 0:00:14]}  Qf5 {[%clk 0:00:12]} 33. Qf3 {[%clk 0:00:14]}  Ne6 {[%clk 0:00:12]} 34. Rae1 {[%clk 0:00:11]}  Rh8 {[%clk 0:00:10]} 35. Qxd5 {[%clk 0:00:11]}  Rh4 {[%clk 0:00:10]} 36. Qe4 {[%clk 0:00:10]}  Qh5 {[%clk 0:00:10]} 37. Qf3 {[%clk 0:00:08]}  Rg4 {[%clk 0:00:09]} 38. Kh1 {[%clk 0:00:06]}  h2 {[%clk 0:00:08]} 39. Rf2 {[%clk 0:00:05]}  Nxf4 {[%clk 0:00:06]} 40. Ref1 {[%clk 0:00:04]}  Qg5 {[%clk 0:00:04]} 41. Rxh2 {[%clk 0:00:03]}  Qf5 {[%clk 0:00:03]} 42. e6 {[%clk 0:00:03]}  Qxe6 {[%clk 0:00:02]} 43. Qe4 {[%clk 0:00:03]}  Qxe4+ {[%clk 0:00:02]} 44. dxe4 {[%clk 0:00:04]}  Ne6 {[%clk 0:00:03]} 45. Rg2 {[%clk 0:00:04]}  Rxe4 {[%clk 0:00:02]} 46. Rgf2 {[%clk 0:00:05]}  f5 {[%clk 0:00:02]} 47. Kg1 {[%clk 0:00:06]}  Kf6 {[%clk 0:00:02]} 48. Rd2 {[%clk 0:00:07]}  f4 {[%clk 0:00:03]} 49. Rd7 {[%clk 0:00:07]}  g5 {[%clk 0:00:03]} 50. Rxb7 {[%clk 0:00:07]}  Kf5 {[%clk 0:00:04]} 51. Rb8 {[%clk 0:00:08]}  Kg4 {[%clk 0:00:04]} 52. Re8 {[%clk 0:00:08]}  f3 {[%clk 0:00:04]} 53. Kf2 {[%clk 0:00:08]}  Re2+ {[%clk 0:00:04]} 54. Kg1 {[%clk 0:00:08]}  Nf4 {[%clk 0:00:05]} 55. Rxe2 {[%clk 0:00:07]}  fxe2 {[%clk 0:00:06]} 56. Re1 {[%clk 0:00:06]}  Kf3 {[%clk 0:00:06]} 57. b4 {[%clk 0:00:06]}  Nd3 {[%clk 0:00:06]} 58. Rb1 {[%clk 0:00:05]}  e1=Q+ {[%clk 0:00:06]} 59. Rxe1 {[%clk 0:00:05]}  Nxe1 {[%clk 0:00:07]} 60. bxc5 {[%clk 0:00:06]}  Nd3 {[%clk 0:00:07]} 61. c6 {[%clk 0:00:06]}  Nf4 {[%clk 0:00:05]} 62. c7 {[%clk 0:00:06]} 1-0


[Site "https://www.chess.com"]

[Event "Titled Tuesday Blitz January 04 2022"]
[White "Diaz Camallonga, Carles"]
[Black "Poormosavi, Seyed Kian"]
[WhiteFideId "22235256"]
[BlackFideId "12585807"]
[WhiteElo "2438"]
[BlackElo "2116"]
[Result "0-1"]
[Round "09"]
[TimeControl "180+1"]
[Date "2022.01.04"]
[WhiteClock "0:00:18"]
[BlackClock "0:00:22"]

1. e4 {[%clk 0:03:00]}  c6 {[%clk 0:02:56]} 2. Nf3 {[%clk 0:03:00]}  d5 {[%clk 0:02:57]} 3. Nc3 {[%clk 0:02:59]}  dxe4 {[%clk 0:02:57]} 4. Nxe4 {[%clk 0:03:00]}  Nf6 {[%clk 0:02:57]} 5. Qe2 {[%clk 0:02:59]}  Nxe4 {[%clk 0:02:53]} 6. Qxe4 {[%clk 0:03:00]}  Qd5 {[%clk 0:02:53]} 7. Qf4 {[%clk 0:02:57]}  Qf5 {[%clk 0:02:50]} 8. Qxf5 {[%clk 0:02:45]}  Bxf5 {[%clk 0:02:51]} 9. d3 {[%clk 0:02:45]}  Nd7 {[%clk 0:02:50]} 10. Bf4 {[%clk 0:02:40]}  f6 {[%clk 0:02:43]} 11. Nd4 {[%clk 0:02:38]}  Bg6 {[%clk 0:02:40]} 12. Ne6 {[%clk 0:02:34]}  Kf7 {[%clk 0:02:40]} 13. Nxf8 {[%clk 0:02:34]}  Rhxf8 {[%clk 0:02:38]} 14. h4 {[%clk 0:02:34]}  h5 {[%clk 0:02:28]} 15. O-O-O {[%clk 0:02:32]}  e5 {[%clk 0:02:22]} 16. Be3 {[%clk 0:02:31]}  Nb6 {[%clk 0:02:06]} 17. Be2 {[%clk 0:02:31]}  Nd5 {[%clk 0:02:00]} 18. Bd2 {[%clk 0:02:31]}  Rad8 {[%clk 0:01:56]} 19. Bf3 {[%clk 0:02:30]}  Rh8 {[%clk 0:01:51]} 20. Rhe1 {[%clk 0:02:26]}  Bf5 {[%clk 0:01:51]} 21. g3 {[%clk 0:02:12]}  g6 {[%clk 0:01:49]} 22. b3 {[%clk 0:02:07]}  Rhe8 {[%clk 0:01:45]} 23. Re2 {[%clk 0:01:34]}  Nc7 {[%clk 0:01:45]} 24. Rde1 {[%clk 0:01:32]}  Ne6 {[%clk 0:01:45]} 25. Be4 {[%clk 0:01:22]}  Bg4 {[%clk 0:01:36]} 26. Re3 {[%clk 0:01:18]}  Rd7 {[%clk 0:01:32]} 27. Bg2 {[%clk 0:01:15]}  Bf5 {[%clk 0:01:24]} 28. Bc3 {[%clk 0:01:13]}  Red8 {[%clk 0:01:16]} 29. Ba5 {[%clk 0:01:11]}  Rc8 {[%clk 0:01:15]} 30. Kb2 {[%clk 0:01:08]}  Nd4 {[%clk 0:01:14]} 31. Bc3 {[%clk 0:01:05]}  Nb5 {[%clk 0:01:13]} 32. Bd2 {[%clk 0:01:04]}  Nd4 {[%clk 0:01:13]} 33. a4 {[%clk 0:01:03]}  Rcd8 {[%clk 0:01:13]} 34. Bc3 {[%clk 0:01:03]}  Ne6 {[%clk 0:01:12]} 35. a5 {[%clk 0:00:58]}  Nc7 {[%clk 0:01:12]} 36. Bd2 {[%clk 0:00:53]}  a6 {[%clk 0:01:12]} 37. R3e2 {[%clk 0:00:51]}  Nb5 {[%clk 0:01:12]} 38. Bb4 {[%clk 0:00:49]}  Nd4 {[%clk 0:01:12]} 39. Re3 {[%clk 0:00:49]}  Be6 {[%clk 0:01:11]} 40. Bc5 {[%clk 0:00:49]}  Bd5 {[%clk 0:01:11]} 41. Be4 {[%clk 0:00:45]}  Ne6 {[%clk 0:01:03]} 42. Bb6 {[%clk 0:00:44]}  Re8 {[%clk 0:01:04]} 43. Kc1 {[%clk 0:00:40]}  Nc7 {[%clk 0:01:03]} 44. Bxc7 {[%clk 0:00:28]}  Rxc7 {[%clk 0:01:02]} 45. f4 {[%clk 0:00:24]}  Rce7 {[%clk 0:00:51]} 46. f5 {[%clk 0:00:24]}  Bxe4 {[%clk 0:00:48]} 47. dxe4 {[%clk 0:00:22]}  gxf5 {[%clk 0:00:48]} 48. exf5 {[%clk 0:00:23]}  Rd7 {[%clk 0:00:47]} 49. Re4 {[%clk 0:00:22]}  Rg8 {[%clk 0:00:45]} 50. R1e3 {[%clk 0:00:21]}  Rd5 {[%clk 0:00:45]} 51. Rb4 {[%clk 0:00:21]}  Rb5 {[%clk 0:00:44]} 52. Rxb5 {[%clk 0:00:21]}  axb5 {[%clk 0:00:45]} 53. b4 {[%clk 0:00:20]}  Rg4 {[%clk 0:00:45]} 54. c3 {[%clk 0:00:20]}  Ke7 {[%clk 0:00:45]} 55. Kc2 {[%clk 0:00:20]}  e4 {[%clk 0:00:45]} 56. Kd2 {[%clk 0:00:19]}  Kd6 {[%clk 0:00:45]} 57. Kc2 {[%clk 0:00:18]}  Ke5 {[%clk 0:00:46]} 58. Kb3 {[%clk 0:00:18]}  Kxf5 {[%clk 0:00:46]} 59. c4 {[%clk 0:00:19]}  Ke5 {[%clk 0:00:39]} 60. cxb5 {[%clk 0:00:19]}  cxb5 {[%clk 0:00:40]} 61. Rc3 {[%clk 0:00:19]}  Kd4 {[%clk 0:00:33]} 62. Kc2 {[%clk 0:00:20]}  e3 {[%clk 0:00:31]} 63. Rc7 {[%clk 0:00:19]}  Rxg3 {[%clk 0:00:30]} 64. Rd7+ {[%clk 0:00:20]}  Kc4 {[%clk 0:00:30]} 65. Rc7+ {[%clk 0:00:20]}  Kxb4 {[%clk 0:00:31]} 66. Rxb7 {[%clk 0:00:21]}  Kxa5 {[%clk 0:00:31]} 67. Kd3 {[%clk 0:00:21]}  b4 {[%clk 0:00:27]} 68. Ra7+ {[%clk 0:00:22]}  Kb5 {[%clk 0:00:27]} 69. Rf7 {[%clk 0:00:22]}  Rf3 {[%clk 0:00:26]} 70. Ke2 {[%clk 0:00:21]}  Rh3 {[%clk 0:00:23]} 71. Rxf6 {[%clk 0:00:20]}  Rxh4 {[%clk 0:00:23]} 72. Kxe3 {[%clk 0:00:20]}  Ka4 {[%clk 0:00:24]} 73. Rf8 {[%clk 0:00:20]}  Kb3 {[%clk 0:00:23]} 74. Kd3 {[%clk 0:00:20]}  Rc4 {[%clk 0:00:23]} 75. Rh8 {[%clk 0:00:20]}  h4 {[%clk 0:00:24]} 76. Kd2 {[%clk 0:00:20]}  Kb2 {[%clk 0:00:24]} 77. Rh7 {[%clk 0:00:19]}  b3 {[%clk 0:00:24]} 78. Rh8 {[%clk 0:00:19]}  Rd4+ {[%clk 0:00:24]} 79. Ke3 {[%clk 0:00:19]}  Rg4 {[%clk 0:00:25]} 80. Kd2 {[%clk 0:00:19]}  Rg2+ {[%clk 0:00:25]} 81. Kd1 {[%clk 0:00:19]}  Rg4 {[%clk 0:00:25]} 82. Kd2 {[%clk 0:00:19]}  Kb1 {[%clk 0:00:26]} 83. Rh7 {[%clk 0:00:18]}  b2 {[%clk 0:00:26]} 84. Rh8 {[%clk 0:00:18]}  Rd4+ {[%clk 0:00:21]} 85. Ke2 {[%clk 0:00:19]}  Rb4 {[%clk 0:00:21]} 86. Kd2 {[%clk 0:00:18]}  Ka2 {[%clk 0:00:21]} 87. Ra8+ {[%clk 0:00:18]}  Kb3 {[%clk 0:00:22]} 0-1


[Site "https://www.chess.com"]

[Event "Titled Tuesday Blitz January 04 2022"]
[White "Drozdowski, Kacper"]
[Black "Golubev, Mikhail"]
[WhiteFideId "1136720"]
[BlackFideId "14100983"]
[WhiteElo "2507"]
[BlackElo "2374"]
[Result "1-0"]
[Round "09"]
[TimeControl "180+1"]
[Date "2022.01.04"]
[WhiteClock "0:01:46"]
[BlackClock "0:00:50"]

1. e4 {[%clk 0:03:00]}  c5 {[%clk 0:02:58]} 2. Nf3 {[%clk 0:03:01]}  d6 {[%clk 0:02:58]} 3. d4 {[%clk 0:03:01]}  Nf6 {[%clk 0:02:58]} 4. Nc3 {[%clk 0:03:01]}  cxd4 {[%clk 0:02:58]} 5. Nxd4 {[%clk 0:03:02]}  g6 {[%clk 0:02:59]} 6. h3 {[%clk 0:03:02]}  Nc6 {[%clk 0:02:54]} 7. Bc4 {[%clk 0:03:02]}  Bg7 {[%clk 0:02:49]} 8. O-O {[%clk 0:03:00]}  O-O {[%clk 0:02:47]} 9. Bb3 {[%clk 0:02:57]}  Nxd4 {[%clk 0:02:44]} 10. Qxd4 {[%clk 0:02:57]}  b5 {[%clk 0:02:44]} 11. Qd3 {[%clk 0:02:44]}  b4 {[%clk 0:02:30]} 12. Nd5 {[%clk 0:02:44]}  a5 {[%clk 0:02:30]} 13. Nxf6+ {[%clk 0:02:40]}  Bxf6 {[%clk 0:02:30]} 14. Rd1 {[%clk 0:02:39]}  a4 {[%clk 0:02:13]} 15. Bd5 {[%clk 0:02:38]}  Ba6 {[%clk 0:02:05]} 16. Qf3 {[%clk 0:02:21]}  Rc8 {[%clk 0:02:00]} 17. Bh6 {[%clk 0:01:54]}  Rxc2 {[%clk 0:01:59]} 18. Bxf8 {[%clk 0:01:53]}  Be2 {[%clk 0:01:45]} 19. Qe3 {[%clk 0:01:52]}  Qxf8 {[%clk 0:01:35]} 20. Rd2 {[%clk 0:01:49]}  Qc8 {[%clk 0:00:50]} 21. Qxe2 {[%clk 0:01:46]} 1-0


[Site "https://www.chess.com"]

[Event "Titled Tuesday Blitz January 04 2022"]
[White "Ezat, Mohamed"]
[Black "Kobalia, Mikhail"]
[WhiteFideId "10600906"]
[BlackFideId "4119150"]
[WhiteElo "2386"]
[BlackElo "2667"]
[Result "1-0"]
[Round "09"]
[TimeControl "180+1"]
[Date "2022.01.04"]
[WhiteClock "0:00:27"]
[BlackClock "0:00:02"]

1. d4 {[%clk 0:03:00]}  Nf6 {[%clk 0:02:54]} 2. Nf3 {[%clk 0:03:00]}  g6 {[%clk 0:02:54]} 3. Nbd2 {[%clk 0:02:58]}  Bg7 {[%clk 0:02:53]} 4. e4 {[%clk 0:02:58]}  O-O {[%clk 0:02:53]} 5. Bc4 {[%clk 0:02:59]}  d5 {[%clk 0:02:52]} 6. exd5 {[%clk 0:02:58]}  Nxd5 {[%clk 0:02:53]} 7. O-O {[%clk 0:02:57]}  Nc6 {[%clk 0:02:51]} 8. c3 {[%clk 0:02:57]}  a6 {[%clk 0:02:38]} 9. Ne4 {[%clk 0:02:54]}  Bf5 {[%clk 0:02:36]} 10. Ng3 {[%clk 0:02:53]}  Bc8 {[%clk 0:02:28]} 11. Qe2 {[%clk 0:02:50]}  b5 {[%clk 0:02:28]} 12. Bb3 {[%clk 0:02:50]}  Na5 {[%clk 0:02:25]} 13. Ne5 {[%clk 0:02:40]}  Bb7 {[%clk 0:02:13]} 14. Ne4 {[%clk 0:02:37]}  f6 {[%clk 0:01:49]} 15. Nf3 {[%clk 0:02:24]}  Nxb3 {[%clk 0:01:48]} 16. axb3 {[%clk 0:02:24]}  Nb6 {[%clk 0:01:44]} 17. Nc5 {[%clk 0:02:23]}  Bd5 {[%clk 0:01:44]} 18. Bf4 {[%clk 0:02:14]}  Re8 {[%clk 0:01:37]} 19. Ne6 {[%clk 0:02:13]}  Bxe6 {[%clk 0:01:34]} 20. Qxe6+ {[%clk 0:02:12]}  Kh8 {[%clk 0:01:34]} 21. c4 {[%clk 0:02:07]}  Qc8 {[%clk 0:01:19]} 22. Rfe1 {[%clk 0:02:00]}  bxc4 {[%clk 0:01:13]} 23. Qxc8 {[%clk 0:01:47]}  Raxc8 {[%clk 0:01:02]} 24. Rxa6 {[%clk 0:01:40]}  cxb3 {[%clk 0:01:02]} 25. Bxc7 {[%clk 0:01:40]}  Nd5 {[%clk 0:01:01]} 26. Bg3 {[%clk 0:01:33]}  Rc2 {[%clk 0:01:00]} 27. Rb1 {[%clk 0:01:26]}  Rec8 {[%clk 0:00:58]} 28. h4 {[%clk 0:01:23]}  Bh6 {[%clk 0:00:55]} 29. Ra3 {[%clk 0:01:13]}  Nf4 {[%clk 0:00:13]} 30. Bxf4 {[%clk 0:01:10]}  Bxf4 {[%clk 0:00:12]} 31. g3 {[%clk 0:01:10]}  Bd6 {[%clk 0:00:07]} 32. Rxb3 {[%clk 0:01:09]}  Re2 {[%clk 0:00:07]} 33. Rc3 {[%clk 0:01:07]}  Rb8 {[%clk 0:00:06]} 34. Kf1 {[%clk 0:00:58]}  Rexb2 {[%clk 0:00:06]} 35. Rxb2 {[%clk 0:00:56]}  Rxb2 {[%clk 0:00:06]} 36. h5 {[%clk 0:00:39]}  gxh5 {[%clk 0:00:04]} 37. Nh4 {[%clk 0:00:38]}  Rb5 {[%clk 0:00:03]} 38. Rf3 {[%clk 0:00:35]}  Kg7 {[%clk 0:00:03]} 39. Kg2 {[%clk 0:00:31]}  Rd5 {[%clk 0:00:02]} 40. Re3 {[%clk 0:00:27]} 1-0


[Site "https://www.chess.com"]